{"text_format":"1","workbook":"xlsx","n_sheets":5,"sheets":["Startsiden","OR10","OR12","OR13","OR21"],"not_rendered":{"charts":0,"images":5,"macros":1,"external_links":0,"defined_names":4,"comments":4,"pivot_tables":0},"unopened":[],"bounds":{"document_bytes":16777216,"sheet_cells":100000,"rows_first":2000,"rows_last":500,"rows_between":2000,"halvings":0,"cell_chars":16384,"cell_head_chars":4096},"cells_cut":0,"cells_raw":0,"read":"whole","date_system":"1900"}

{"sheet":"Startsiden","index":0,"n_rows":50,"n_cols":22,"rows_kept":50,"cut":false,"hidden":false,"merged":[]}
[null,null,null,null,null,null,null,null,null,null,null,null,null,null,null,null,null,null,null,null," "," "]
[null,null,null,null,null,null,null,null,null,null,null,null,null,null,null,null,null,null,null,null," "," "]
[null,null,null,null,null,null,null,null,null,null,null,null,null,null,null,null,null,null,null,null," "," "]
[null,"Innfin",null,null,null,null,null,null,null,null,null,null,null,null,null,null,null,null,null,null," "," "]
[null,"- rapportering med SSBs Excel-mal",null,null,null,null,null,null,null,null,null,null,null,null,null,null,null,null,null,null," "," "]
[null,null,null,null,null,null,null,null,null,null,null,null,null,null,null,null,null,null,null,null," "," "]
[null,"\nVeiledning - hvilke opplysninger skal rapporteres? \n\nPå neste arkfane, «Tabell», skal du legge inn tall om hvor mange innfin rader dere har.\n",null,null,null,null,null,null,null,null,null,null,null,null,null,null,null,null,null,null," "," "]
[null,"Vennligst fyll ut årstall og organisasjonsnummer:",null,null,null,null,null,null,null,null,null,null,null,null,null,null,null,null,null,null," "," "]
[null,null,null,null,null,null,null,null,null,null,null,null,null,null,null,null,null,null,null,null," "," "]
[null,"Årstall:",2024,null,null,null,null,null,null,null,null,null,null,null,null,null,null,null,null,null," "," "]
[null,"Organisasjonsnummer:"]
[]
[]
[]
[]
[null,"Veiledning - hvilke opplysninger skal rapporteres? "]
[]
[null,"Se veiledningsmaterialet til orbof-rapporteringen:"]
[null,"Veiledning til rapportering"]
[null,"Veiledning til rapporteringen 2024 (Word) under Rapporteringsmateriell "]
[]
[]
[]
[]
[null,"Balansering - rapport 10"]
[]
[null,null,"januar","februar","mars","april","mai","juni","juli","august","september","oktober","november","desember"]
[null,"Sum eiendeler (1-5)",{"$f":"SUMIF('OR10'!$E:$E, \"<=5\", 'OR10'!S:S) - SUMIF('OR10'!$E:$E, \"<1\", 'OR10'!S:S)","v":0},{"$f":"SUMIF('OR10'!$E:$E, \"<=5\", 'OR10'!T:T) - SUMIF('OR10'!$E:$E, \"<1\", 'OR10'!T:T)","v":0},{"$f":"SUMIF('OR10'!$E:$E, \"<=5\", 'OR10'!U:U) - SUMIF('OR10'!$E:$E, \"<1\", 'OR10'!U:U)","v":0},{"$f":"SUMIF('OR10'!$E:$E, \"<=5\", 'OR10'!V:V) - SUMIF('OR10'!$E:$E, \"<1\", 'OR10'!V:V)","v":0},{"$f":"SUMIF('OR10'!$E:$E, \"<=5\", 'OR10'!W:W) - SUMIF('OR10'!$E:$E, \"<1\", 'OR10'!W:W)","v":0},{"$f":"SUMIF('OR10'!$E:$E, \"<=5\", 'OR10'!X:X) - SUMIF('OR10'!$E:$E, \"<1\", 'OR10'!X:X)","v":0},{"$f":"SUMIF('OR10'!$E:$E, \"<=5\", 'OR10'!Y:Y) - SUMIF('OR10'!$E:$E, \"<1\", 'OR10'!Y:Y)","v":0},{"$f":"SUMIF('OR10'!$E:$E, \"<=5\", 'OR10'!Z:Z) - SUMIF('OR10'!$E:$E, \"<1\", 'OR10'!Z:Z)","v":0},{"$f":"SUMIF('OR10'!$E:$E, \"<=5\", 'OR10'!AA:AA) - SUMIF('OR10'!$E:$E, \"<1\", 'OR10'!AA:AA)","v":0},{"$f":"SUMIF('OR10'!$E:$E, \"<=5\", 'OR10'!AB:AB) - SUMIF('OR10'!$E:$E, \"<1\", 'OR10'!AB:AB)","v":0},{"$f":"SUMIF('OR10'!$E:$E, \"<=5\", 'OR10'!AC:AC) - SUMIF('OR10'!$E:$E, \"<1\", 'OR10'!AC:AC)","v":0},{"$f":"SUMIF('OR10'!$E:$E, \"<=5\", 'OR10'!AD:AD) - SUMIF('OR10'!$E:$E, \"<1\", 'OR10'!AD:AD)","v":0}]
[null,"Sum gjeld og egenkapital (6-9)",{"$f":"SUMIF('OR10'!$E:$E, \">=6\", 'OR10'!S:S) - SUMIF('OR10'!$E:$E, \">9\", 'OR10'!S:S)","v":0},{"$f":"SUMIF('OR10'!$E:$E, \">=6\", 'OR10'!T:T) - SUMIF('OR10'!$E:$E, \">9\", 'OR10'!T:T)","v":0},{"$f":"SUMIF('OR10'!$E:$E, \">=6\", 'OR10'!U:U) - SUMIF('OR10'!$E:$E, \">9\", 'OR10'!U:U)","v":0},{"$f":"SUMIF('OR10'!$E:$E, \">=6\", 'OR10'!V:V) - SUMIF('OR10'!$E:$E, \">9\", 'OR10'!V:V)","v":0},{"$f":"SUMIF('OR10'!$E:$E, \">=6\", 'OR10'!W:W) - SUMIF('OR10'!$E:$E, \">9\", 'OR10'!W:W)","v":0},{"$f":"SUMIF('OR10'!$E:$E, \">=6\", 'OR10'!X:X) - SUMIF('OR10'!$E:$E, \">9\", 'OR10'!X:X)","v":0},{"$f":"SUMIF('OR10'!$E:$E, \">=6\", 'OR10'!Y:Y) - SUMIF('OR10'!$E:$E, \">9\", 'OR10'!Y:Y)","v":0},{"$f":"SUMIF('OR10'!$E:$E, \">=6\", 'OR10'!Z:Z) - SUMIF('OR10'!$E:$E, \">9\", 'OR10'!Z:Z)","v":0},{"$f":"SUMIF('OR10'!$E:$E, \">=6\", 'OR10'!AA:AA) - SUMIF('OR10'!$E:$E, \">9\", 'OR10'!AA:AA)","v":0},{"$f":"SUMIF('OR10'!$E:$E, \">=6\", 'OR10'!AB:AB) - SUMIF('OR10'!$E:$E, \">9\", 'OR10'!AB:AB)","v":0},{"$f":"SUMIF('OR10'!$E:$E, \">=6\", 'OR10'!AC:AC) - SUMIF('OR10'!$E:$E, \">9\", 'OR10'!AC:AC)","v":0},{"$f":"SUMIF('OR10'!$E:$E, \">=6\", 'OR10'!AD:AD) - SUMIF('OR10'!$E:$E, \">9\", 'OR10'!AD:AD)","v":0}]
[null,"Differanse",{"$f":"(ABS(C28-C29))","v":0},0,0,0,0,0,0,0,0,0,0,0]
[]
[]
[]
[]
[null,"Balansering - rapport 13"]
[]
[null,null,"januar","februar","mars","april","mai","juni","juli","august","september","oktober","november","desember"]
[null,"Sum eiendeler (01-03)",{"$f":"SUMIFS('OR13'!S:S, 'OR13'!$B:$B, 63, 'OR13'!$D:$D, \"01\")\n+ SUMIFS('OR13'!S:S, 'OR13'!$B:$B, 63, 'OR13'!$D:$D, \"02\")\n+ SUMIFS('OR13'!S:S, 'OR13'!$B:$B, 63, 'OR13'!$D:$D, \"03\")","v":0},{"$f":"SUMIFS('OR13'!T:T, 'OR13'!$B:$B, 63, 'OR13'!$D:$D, \"01\")\n+ SUMIFS('OR13'!T:T, 'OR13'!$B:$B, 63, 'OR13'!$D:$D, \"02\")\n+ SUMIFS('OR13'!T:T, 'OR13'!$B:$B, 63, 'OR13'!$D:$D, \"03\")","v":0},{"$f":"SUMIFS('OR13'!U:U, 'OR13'!$B:$B, 63, 'OR13'!$D:$D, \"01\")\n+ SUMIFS('OR13'!U:U, 'OR13'!$B:$B, 63, 'OR13'!$D:$D, \"02\")\n+ SUMIFS('OR13'!U:U, 'OR13'!$B:$B, 63, 'OR13'!$D:$D, \"03\")","v":0},{"$f":"SUMIFS('OR13'!V:V, 'OR13'!$B:$B, 63, 'OR13'!$D:$D, \"01\")\n+ SUMIFS('OR13'!V:V, 'OR13'!$B:$B, 63, 'OR13'!$D:$D, \"02\")\n+ SUMIFS('OR13'!V:V, 'OR13'!$B:$B, 63, 'OR13'!$D:$D, \"03\")","v":0},{"$f":"SUMIFS('OR13'!W:W, 'OR13'!$B:$B, 63, 'OR13'!$D:$D, \"01\")\n+ SUMIFS('OR13'!W:W, 'OR13'!$B:$B, 63, 'OR13'!$D:$D, \"02\")\n+ SUMIFS('OR13'!W:W, 'OR13'!$B:$B, 63, 'OR13'!$D:$D, \"03\")","v":0},{"$f":"SUMIFS('OR13'!X:X, 'OR13'!$B:$B, 63, 'OR13'!$D:$D, \"01\")\n+ SUMIFS('OR13'!X:X, 'OR13'!$B:$B, 63, 'OR13'!$D:$D, \"02\")\n+ SUMIFS('OR13'!X:X, 'OR13'!$B:$B, 63, 'OR13'!$D:$D, \"03\")","v":0},{"$f":"SUMIFS('OR13'!Y:Y, 'OR13'!$B:$B, 63, 'OR13'!$D:$D, \"01\")\n+ SUMIFS('OR13'!Y:Y, 'OR13'!$B:$B, 63, 'OR13'!$D:$D, \"02\")\n+ SUMIFS('OR13'!Y:Y, 'OR13'!$B:$B, 63, 'OR13'!$D:$D, \"03\")","v":0},{"$f":"SUMIFS('OR13'!Z:Z, 'OR13'!$B:$B, 63, 'OR13'!$D:$D, \"01\")\n+ SUMIFS('OR13'!Z:Z, 'OR13'!$B:$B, 63, 'OR13'!$D:$D, \"02\")\n+ SUMIFS('OR13'!Z:Z, 'OR13'!$B:$B, 63, 'OR13'!$D:$D, \"03\")","v":0},{"$f":"SUMIFS('OR13'!AA:AA, 'OR13'!$B:$B, 63, 'OR13'!$D:$D, \"01\")\n+ SUMIFS('OR13'!AA:AA, 'OR13'!$B:$B, 63, 'OR13'!$D:$D, \"02\")\n+ SUMIFS('OR13'!AA:AA, 'OR13'!$B:$B, 63, 'OR13'!$D:$D, \"03\")","v":0},{"$f":"SUMIFS('OR13'!AB:AB, 'OR13'!$B:$B, 63, 'OR13'!$D:$D, \"01\")\n+ SUMIFS('OR13'!AB:AB, 'OR13'!$B:$B, 63, 'OR13'!$D:$D, \"02\")\n+ SUMIFS('OR13'!AB:AB, 'OR13'!$B:$B, 63, 'OR13'!$D:$D, \"03\")","v":0},{"$f":"SUMIFS('OR13'!AC:AC, 'OR13'!$B:$B, 63, 'OR13'!$D:$D, \"01\")\n+ SUMIFS('OR13'!AC:AC, 'OR13'!$B:$B, 63, 'OR13'!$D:$D, \"02\")\n+ SUMIFS('OR13'!AC:AC, 'OR13'!$B:$B, 63, 'OR13'!$D:$D, \"03\")","v":0},{"$f":"SUMIFS('OR13'!AD:AD, 'OR13'!$B:$B, 63, 'OR13'!$D:$D, \"01\")\n+ SUMIFS('OR13'!AD:AD, 'OR13'!$B:$B, 63, 'OR13'!$D:$D, \"02\")\n+ SUMIFS('OR13'!AD:AD, 'OR13'!$B:$B, 63, 'OR13'!$D:$D, \"03\")","v":0}]
[null,"Sum gjeld og egenkapital (04,05,09)",{"$f":"SUMIFS('OR13'!S:S, 'OR13'!$B:$B, 63, 'OR13'!$D:$D, \"04\")\n+ SUMIFS('OR13'!S:S, 'OR13'!$B:$B, 63, 'OR13'!$D:$D, \"05\")\n+ SUMIFS('OR13'!S:S, 'OR13'!$B:$B, 63, 'OR13'!$D:$D, \"09\")","v":0},{"$f":"SUMIFS('OR13'!T:T, 'OR13'!$B:$B, 63, 'OR13'!$D:$D, \"04\")\n+ SUMIFS('OR13'!T:T, 'OR13'!$B:$B, 63, 'OR13'!$D:$D, \"05\")\n+ SUMIFS('OR13'!T:T, 'OR13'!$B:$B, 63, 'OR13'!$D:$D, \"09\")","v":0},{"$f":"SUMIFS('OR13'!U:U, 'OR13'!$B:$B, 63, 'OR13'!$D:$D, \"04\")\n+ SUMIFS('OR13'!U:U, 'OR13'!$B:$B, 63, 'OR13'!$D:$D, \"05\")\n+ SUMIFS('OR13'!U:U, 'OR13'!$B:$B, 63, 'OR13'!$D:$D, \"09\")","v":0},{"$f":"SUMIFS('OR13'!V:V, 'OR13'!$B:$B, 63, 'OR13'!$D:$D, \"04\")\n+ SUMIFS('OR13'!V:V, 'OR13'!$B:$B, 63, 'OR13'!$D:$D, \"05\")\n+ SUMIFS('OR13'!V:V, 'OR13'!$B:$B, 63, 'OR13'!$D:$D, \"09\")","v":0},{"$f":"SUMIFS('OR13'!W:W, 'OR13'!$B:$B, 63, 'OR13'!$D:$D, \"04\")\n+ SUMIFS('OR13'!W:W, 'OR13'!$B:$B, 63, 'OR13'!$D:$D, \"05\")\n+ SUMIFS('OR13'!W:W, 'OR13'!$B:$B, 63, 'OR13'!$D:$D, \"09\")","v":0},{"$f":"SUMIFS('OR13'!X:X, 'OR13'!$B:$B, 63, 'OR13'!$D:$D, \"04\")\n+ SUMIFS('OR13'!X:X, 'OR13'!$B:$B, 63, 'OR13'!$D:$D, \"05\")\n+ SUMIFS('OR13'!X:X, 'OR13'!$B:$B, 63, 'OR13'!$D:$D, \"09\")","v":0},{"$f":"SUMIFS('OR13'!Y:Y, 'OR13'!$B:$B, 63, 'OR13'!$D:$D, \"04\")\n+ SUMIFS('OR13'!Y:Y, 'OR13'!$B:$B, 63, 'OR13'!$D:$D, \"05\")\n+ SUMIFS('OR13'!Y:Y, 'OR13'!$B:$B, 63, 'OR13'!$D:$D, \"09\")","v":0},{"$f":"SUMIFS('OR13'!Z:Z, 'OR13'!$B:$B, 63, 'OR13'!$D:$D, \"04\")\n+ SUMIFS('OR13'!Z:Z, 'OR13'!$B:$B, 63, 'OR13'!$D:$D, \"05\")\n+ SUMIFS('OR13'!Z:Z, 'OR13'!$B:$B, 63, 'OR13'!$D:$D, \"09\")","v":0},{"$f":"SUMIFS('OR13'!AA:AA, 'OR13'!$B:$B, 63, 'OR13'!$D:$D, \"04\")\n+ SUMIFS('OR13'!AA:AA, 'OR13'!$B:$B, 63, 'OR13'!$D:$D, \"05\")\n+ SUMIFS('OR13'!AA:AA, 'OR13'!$B:$B, 63, 'OR13'!$D:$D, \"09\")","v":0},{"$f":"SUMIFS('OR13'!AB:AB, 'OR13'!$B:$B, 63, 'OR13'!$D:$D, \"04\")\n+ SUMIFS('OR13'!AB:AB, 'OR13'!$B:$B, 63, 'OR13'!$D:$D, \"05\")\n+ SUMIFS('OR13'!AB:AB, 'OR13'!$B:$B, 63, 'OR13'!$D:$D, \"09\")","v":0},{"$f":"SUMIFS('OR13'!AC:AC, 'OR13'!$B:$B, 63, 'OR13'!$D:$D, \"04\")\n+ SUMIFS('OR13'!AC:AC, 'OR13'!$B:$B, 63, 'OR13'!$D:$D, \"05\")\n+ SUMIFS('OR13'!AC:AC, 'OR13'!$B:$B, 63, 'OR13'!$D:$D, \"09\")","v":0},{"$f":"SUMIFS('OR13'!AD:AD, 'OR13'!$B:$B, 63, 'OR13'!$D:$D, \"04\")\n+ SUMIFS('OR13'!AD:AD, 'OR13'!$B:$B, 63, 'OR13'!$D:$D, \"05\")\n+ SUMIFS('OR13'!AD:AD, 'OR13'!$B:$B, 63, 'OR13'!$D:$D, \"09\")","v":0}]
[null,"Differanse",{"$f":"ABS(C38-C39)","v":0},{"$f":"(ABS(D38-D39))","v":0},{"$f":"(ABS(E38-E39))","v":0},0,0,0,0,0,0,0,0,0]
[]
[]
[]
[]
[null,"Kontroll av resultat - rapport 21"]
[]
[null,null,"januar","februar","mars","april","mai","juni","juli","august","september","oktober","november","desember"]
[null,"Post 9.03.0.10",{"$f":"SUMIFS('OR21'!S:S, 'OR21'!$C:$C, 9, 'OR21'!$D:$D, \"03\", 'OR21'!$F:$F, 10)","v":0},{"$f":"SUMIFS('OR21'!T:T, 'OR21'!$C:$C, 9, 'OR21'!$D:$D, \"03\", 'OR21'!$F:$F, 10)","v":0},{"$f":"SUMIFS('OR21'!U:U, 'OR21'!$C:$C, 9, 'OR21'!$D:$D, \"03\", 'OR21'!$F:$F, 10)","v":0},{"$f":"SUMIFS('OR21'!V:V, 'OR21'!$C:$C, 9, 'OR21'!$D:$D, \"03\", 'OR21'!$F:$F, 10)","v":0},{"$f":"SUMIFS('OR21'!W:W, 'OR21'!$C:$C, 9, 'OR21'!$D:$D, \"03\", 'OR21'!$F:$F, 10)","v":0},{"$f":"SUMIFS('OR21'!X:X, 'OR21'!$C:$C, 9, 'OR21'!$D:$D, \"03\", 'OR21'!$F:$F, 10)","v":0},{"$f":"SUMIFS('OR21'!Y:Y, 'OR21'!$C:$C, 9, 'OR21'!$D:$D, \"03\", 'OR21'!$F:$F, 10)","v":0},{"$f":"SUMIFS('OR21'!Z:Z, 'OR21'!$C:$C, 9, 'OR21'!$D:$D, \"03\", 'OR21'!$F:$F, 10)","v":0},{"$f":"SUMIFS('OR21'!AA:AA, 'OR21'!$C:$C, 9, 'OR21'!$D:$D, \"03\", 'OR21'!$F:$F, 10)","v":0},{"$f":"SUMIFS('OR21'!AB:AB, 'OR21'!$C:$C, 9, 'OR21'!$D:$D, \"03\", 'OR21'!$F:$F, 10)","v":0},{"$f":"SUMIFS('OR21'!AC:AC, 'OR21'!$C:$C, 9, 'OR21'!$D:$D, \"03\", 'OR21'!$F:$F, 10)","v":0},{"$f":"SUMIFS('OR21'!AD:AD, 'OR21'!$C:$C, 9, 'OR21'!$D:$D, \"03\", 'OR21'!$F:$F, 10)","v":0}]
[null,"(1+2) - (4+5+6+7)",{"$f":"(SUMIFS('OR21'!S:S, 'OR21'!$C:$C, 1) + SUMIFS('OR21'!S:S, 'OR21'!$C:$C, 2))\n- (SUMIFS('OR21'!S:S, 'OR21'!$C:$C, 4) + SUMIFS('OR21'!S:S, 'OR21'!$C:$C, 5)\n+ SUMIFS('OR21'!S:S, 'OR21'!$C:$C, 6) + SUMIFS('OR21'!S:S, 'OR21'!$C:$C, 7))","v":0},{"$f":"(SUMIFS('OR21'!T:T, 'OR21'!$C:$C, 1) + SUMIFS('OR21'!T:T, 'OR21'!$C:$C, 2))\n- (SUMIFS('OR21'!T:T, 'OR21'!$C:$C, 4) + SUMIFS('OR21'!T:T, 'OR21'!$C:$C, 5)\n+ SUMIFS('OR21'!T:T, 'OR21'!$C:$C, 6) + SUMIFS('OR21'!T:T, 'OR21'!$C:$C, 7))","v":0},{"$f":"(SUMIFS('OR21'!U:U, 'OR21'!$C:$C, 1) + SUMIFS('OR21'!U:U, 'OR21'!$C:$C, 2))\n- (SUMIFS('OR21'!U:U, 'OR21'!$C:$C, 4) + SUMIFS('OR21'!U:U, 'OR21'!$C:$C, 5)\n+ SUMIFS('OR21'!U:U, 'OR21'!$C:$C, 6) + SUMIFS('OR21'!U:U, 'OR21'!$C:$C, 7))","v":0},{"$f":"(SUMIFS('OR21'!V:V, 'OR21'!$C:$C, 1) + SUMIFS('OR21'!V:V, 'OR21'!$C:$C, 2))\n- (SUMIFS('OR21'!V:V, 'OR21'!$C:$C, 4) + SUMIFS('OR21'!V:V, 'OR21'!$C:$C, 5)\n+ SUMIFS('OR21'!V:V, 'OR21'!$C:$C, 6) + SUMIFS('OR21'!V:V, 'OR21'!$C:$C, 7))","v":0},{"$f":"(SUMIFS('OR21'!W:W, 'OR21'!$C:$C, 1) + SUMIFS('OR21'!W:W, 'OR21'!$C:$C, 2))\n- (SUMIFS('OR21'!W:W, 'OR21'!$C:$C, 4) + SUMIFS('OR21'!W:W, 'OR21'!$C:$C, 5)\n+ SUMIFS('OR21'!W:W, 'OR21'!$C:$C, 6) + SUMIFS('OR21'!W:W, 'OR21'!$C:$C, 7))","v":0},{"$f":"(SUMIFS('OR21'!X:X, 'OR21'!$C:$C, 1) + SUMIFS('OR21'!X:X, 'OR21'!$C:$C, 2))\n- (SUMIFS('OR21'!X:X, 'OR21'!$C:$C, 4) + SUMIFS('OR21'!X:X, 'OR21'!$C:$C, 5)\n+ SUMIFS('OR21'!X:X, 'OR21'!$C:$C, 6) + SUMIFS('OR21'!X:X, 'OR21'!$C:$C, 7))","v":0},{"$f":"(SUMIFS('OR21'!Y:Y, 'OR21'!$C:$C, 1) + SUMIFS('OR21'!Y:Y, 'OR21'!$C:$C, 2))\n- (SUMIFS('OR21'!Y:Y, 'OR21'!$C:$C, 4) + SUMIFS('OR21'!Y:Y, 'OR21'!$C:$C, 5)\n+ SUMIFS('OR21'!Y:Y, 'OR21'!$C:$C, 6) + SUMIFS('OR21'!Y:Y, 'OR21'!$C:$C, 7))","v":0},{"$f":"(SUMIFS('OR21'!Z:Z, 'OR21'!$C:$C, 1) + SUMIFS('OR21'!Z:Z, 'OR21'!$C:$C, 2))\n- (SUMIFS('OR21'!Z:Z, 'OR21'!$C:$C, 4) + SUMIFS('OR21'!Z:Z, 'OR21'!$C:$C, 5)\n+ SUMIFS('OR21'!Z:Z, 'OR21'!$C:$C, 6) + SUMIFS('OR21'!Z:Z, 'OR21'!$C:$C, 7))","v":0},{"$f":"(SUMIFS('OR21'!AA:AA, 'OR21'!$C:$C, 1) + SUMIFS('OR21'!AA:AA, 'OR21'!$C:$C, 2))\n- (SUMIFS('OR21'!AA:AA, 'OR21'!$C:$C, 4) + SUMIFS('OR21'!AA:AA, 'OR21'!$C:$C, 5)\n+ SUMIFS('OR21'!AA:AA, 'OR21'!$C:$C, 6) + SUMIFS('OR21'!AA:AA, 'OR21'!$C:$C, 7))","v":0},{"$f":"(SUMIFS('OR21'!AB:AB, 'OR21'!$C:$C, 1) + SUMIFS('OR21'!AB:AB, 'OR21'!$C:$C, 2))\n- (SUMIFS('OR21'!AB:AB, 'OR21'!$C:$C, 4) + SUMIFS('OR21'!AB:AB, 'OR21'!$C:$C, 5)\n+ SUMIFS('OR21'!AB:AB, 'OR21'!$C:$C, 6) + SUMIFS('OR21'!AB:AB, 'OR21'!$C:$C, 7))","v":0},{"$f":"(SUMIFS('OR21'!AC:AC, 'OR21'!$C:$C, 1) + SUMIFS('OR21'!AC:AC, 'OR21'!$C:$C, 2))\n- (SUMIFS('OR21'!AC:AC, 'OR21'!$C:$C, 4) + SUMIFS('OR21'!AC:AC, 'OR21'!$C:$C, 5)\n+ SUMIFS('OR21'!AC:AC, 'OR21'!$C:$C, 6) + SUMIFS('OR21'!AC:AC, 'OR21'!$C:$C, 7))","v":0},{"$f":"(SUMIFS('OR21'!AD:AD, 'OR21'!$C:$C, 1) + SUMIFS('OR21'!AD:AD, 'OR21'!$C:$C, 2))\n- (SUMIFS('OR21'!AD:AD, 'OR21'!$C:$C, 4) + SUMIFS('OR21'!AD:AD, 'OR21'!$C:$C, 5)\n+ SUMIFS('OR21'!AD:AD, 'OR21'!$C:$C, 6) + SUMIFS('OR21'!AD:AD, 'OR21'!$C:$C, 7))","v":0}]
[null,"Differanse",{"$f":"(ABS(C48-C49))","v":0},0,{"$f":"(ABS(E48-E49))","v":0},{"$f":"(ABS(F48-F49))","v":0},0,0,0,0,0,0,0,0]

{"sheet":"OR10","index":1,"n_rows":84,"n_cols":32,"rows_kept":84,"cut":false,"hidden":false,"merged":[]}
["ORBOF rapport 10"]
[]
[]
[]
[null,null,null,null,null,null,null,null,null,null,null,null,null,null,null,null,null,null,null,null,null,null,null,null,null,null,null,null,null,null,null," "]
["Beskrivelse                                                                                        (valgfritt)","Tilleggs-art (blank)","Arts-gruppe (blank)","Inntekts-/ kostnadsart (blank)","Objekts-gruppe","Objekt","Under-objekt","Løpetid (blank)","Pant","Reservert (00)","Reservert (00)","Portefølje","Verd-setting","Sektor","Næring","Land (blank)","Fylke (blank)","Valuta","januar","februar","mars","april","mai","juni","juli","august","september","oktober","november","desember","VERSION::20210316||INNFIN::OR10||ORGNR::910887963||ÅR::2023|||"," "]
["Kontanter",null,null,null,1,11,0]
["Bankinnskudd",null,null,null,1,16,0]
["Aksjer, andeler, egenkapitalbevis mv., Fondsobligasjoner klassifisert som egenkapital",null,null,null,2,20,40]
["Aksjer, andeler, egenkapitalbevis mv., Andeler i rentefond",null,null,null,2,"20","51"]
["Aksjer, andeler, egenkapitalbevis mv., Andeler i aksjefond (inkl. kombinasjonsfond)",null,null,null,2,20,"56"]
["Aksjer, andeler, egenkapitalbevis mv., Aksjer, egenkapitalbevis og øvrige andeler",null,null,null,2,"20","90"]
["Rentebærende, omsettelige verdipapirer, ekskl. andeler i rentefond, Obligasjoner med fortrinnsrett (OMF)",null,null,null,2,"30","10"]
["Rentebærende, omsettelige verdipapirer, ekskl. andeler i rentefond, Fondsobligasjoner klassifisert som ansv. Lånekapital",null,null,null,2,"30","40"]
["Rentebærende, omsettelige verdipapirer, ekskl. andeler i rentefond, Andre med opprinnelig løpetid tom. 12 mnd.",null,null,null,2,"30","91"]
["Rentebærende, omsettelige verdipapirer, ekskl. andeler i rentefond, Andre med opprinnelig løpetid over 12 mnd.",null,null,null,2,"30","92"]
["Finansielle derivater (kan være negativ)",null,null,null,2,"40","00"]
["Utlån, brutto balanseført verdi, Factoring",null,null,null,3,"51","11"]
["Utlån, brutto balanseført verdi, Kredittkort",null,null,null,3,"51","15"]
["Utlån, brutto balanseført verdi, Andre rammelån/rammekreditter",null,null,null,3,"51","19"]
["Utlån, brutto balanseført verdi, Leasing",null,null,null,3,"51","30"]
["Utlån, brutto balanseført verdi, Nedbetalingslån",null,null,null,3,"51","50"]
["Utlån, brutto balanseført verdi, Repoavtale (gjensalgsavtale)",null,null,null,3,"51","80"]
["Tapsnedskrivning på utlån som er balanseført (negativ), 12-mnd. forventet kredittap på \"friske\" utlån (steg 1)",null,null,null,3,"56","10",null,null,null,null,null,null,null,null,null,null,null,null,null,null,null,null,null,null,null,null,null,null,null," "]
["Tapsnedskrivning på utlån som er balanseført (neg), Nedskrivning v/ vesentlig økt kredittrisiko uten tapshendelse (steg 2)",null,null,null,3,"56","30",null,null,null,null,null,null,null,null,null,null,null,null,null,null,null,null,null,null,null,null,null,null,null,"Opplysningene er nå limt inn"]
["Tapsnedskrivning på utlån som er balanseført (neg), Nedskrivning v/ vesentlig økt kredittrisiko med tapshendelse (steg 3)",null,null,null,3,"56","50"]
["Andre fordringer, Uoppgjorte verdipapirhandler",null,null,null,4,"82","50"]
["Andre fordringer, Andre fordringer ellers",null,null,null,4,"82","90"]
["Andre eiendeler, Eiendeler ved skatt",null,null,null,4,"89","20"]
["Andre eiendeler, Netto pensjonsmidler",null,null,null,4,"89","70"]
["Andre eiendeler, Øvrige eiendeler",null,null,null,4,"89","90"]
["Bygninger og annen fast eiendom, Investeringseiendom",null,null,null,5,"91","10"]
["Bygninger og annen fast eiendom, Eierbenyttet",null,null,null,5,"91","30"]
["Bygninger og annen fast eiendom, Overtatte eiendommer",null,null,null,5,"91","50"]
["Maskiner, inventar og transportmidler",null,null,null,5,"94","00"]
["Leierettigheter",null,null,null,5,"96","00"]
["Immaterielle eiendeler, Goodwill",null,null,null,5,"97","10"]
["Immaterielle eiendeler, Andre immaterielle eiendeler",null,null,null,5,"97","90"]
["Innskudd disponible for uttak over natten, Brukskonti",null,null,null,6,"16","10"]
["Innskudd disponible for uttak over natten, Sparekonti mv. uten binding",null,null,null,6,"16","20"]
["Innskudd med oppsigelsesfrist eller bindingstid, Oppsigelsesfrist tom. 3 måneder eller bindingstid tom. 2 år",null,null,null,6,"17","10"]
["Innskudd med oppsigelsesfrist eller bindingstid, Oppsigelsesfrist over 3 måneder eller bindingstid over 2 år",null,null,null,6,"17","90"]
["Innskudd bundet til formål uten oppsigelsesfrist eller bindingstid, Skattetrekkskonti",null,null,null,6,"18","10"]
["Innskudd bundet til formål uten oppsigelsesfrist eller bindingstid, BSU (BSU-konti med sk.fradrag)",null,null,null,6,"18","30"]
["Innskudd bundet til formål uten oppsigelsesfrist eller bindingstid, Konti knyttet til pensjonsavtale, -sparing",null,null,null,6,"18","40"]
["Innskudd bundet til formål uten oppsigelsesfrist eller bindingstid, Andre",null,null,null,6,"18","90"]
["Lån i form av rentebærende, omsettelige verdipapirer, ekskl. ansvarlig kapital, Obligasjoner med fortrinnsrett (kun for kredittforetak), brutto",null,null,null,7,"30","11"]
["Lån i form av rentebærende, omsettelige verdipapirer, ekskl. ansvarlig kapital, Egenbeholdning av obligasjoner med fortrinnsrett (negativ)",null,null,null,7,"30","12"]
["Lån i form av rentebærende, omsettelige verdipapirer, ekskl. ansvarlig kapital, Annen verdipapirgjeld",null,null,null,7,"30","91"]
["Lån i form av rentebærende, omsettelige verdipapirer, ekskl. ansvarlig kapital, Egenbeholdning andre obligasjoner(neg)",null,null,null,7,"30","92"]
["Finansielle derivater (kan være negativ)",null,null,null,7,"40","00"]
["Andre lån, Repoavtale (gjenkjøpsavtale)",null,null,null,7,"50","80"]
["Andre lån, Øvrige lån",null,null,null,7,"50","90"]
["Annen gjeld, Skattetrekk, arbeidsgiveravgift mv. knyttet til egne ansatte",null,null,null,7,"82","20"]
["Annen gjeld, Uoppgjorte verdipapirhandler",null,null,null,7,"82","50"]
["Annen gjeld, Utbytte - egenkapitalbevisrenter siste år",null,null,null,7,"82","81"]
["Annen gjeld, Konsernbidrag siste år",null,null,null,7,"82","82"]
["Annen gjeld, Øvrig kortsiktig gjeld",null,null,null,7,"82","90"]
["Tapsavs. ubenyttet utlånsramme, garantier til am.kost, 12-mnd.forv. kredittap \"friske\" utlån og garantier (steg 1)",null,null,null,7,"86","10"]
["Tapsavs. ubenyttet utlånsramme, garantier til am.kost, Tapsavsetning v/ vesentl. økt kredittrisiko u/ tapshendelse (steg 2)",null,null,null,7,"86","30"]
["Tapsavs. ubenyttet utlånsramme, garantier til am.kost, Tapsavsetning v/ vesentl. økt kredittrisiko m/ tapshendelse (steg 3)",null,null,null,7,"86","50"]
["Tapsavsetning på garantier til virkelig verdi",null,null,null,7,"87","00"]
["Andre forpliktelser, Forpliktelser ved periodeskatt",null,null,null,7,"89","21"]
["Andre forpliktelser, Forpliktelser ved utsatt skatt",null,null,null,7,"89","22"]
["Andre forpliktelser, Pensjonsforpliktelser",null,null,null,7,"89","70"]
["Andre forpliktelser, Forpliktelser knyttet til leieavtaler",null,null,null,7,"89","80"]
["Andre forpliktelser, Øvrige forpliktelser",null,null,null,7,"89","90"]
["Ansvarlig lånekapital i form av fondsobligasjoner, netto",null,null,null,8,"31","00"]
["Ansvarlig lånekap. o.a. etterstilt gjeld i form av andre rentebærende omsettelige verdipapirer, nto. Senior etterstilte obligasjonslån, netto",null,null,null,8,"39","10"]
["Ansvarlig lånekap. o.a. etterstilt gjeld i form av andre rentebærende omsettelige verdipapirer, nto. Øvrige lån i form av omsettelige verdipap., netto",null,null,null,8,"39","90"]
["Annen ansvarlig lånekapital ",null,null,null,8,"50","00"]
["Selskapskapital, Aksjekapital - eierandelskapital",null,null,null,9,"21","11"]
["Selskapskapital, Egne aksjer og egenkapitalbevis (negativ)",null,null,null,9,"21","12"]
["Selskapskapital, Overkurs",null,null,null,9,"21","30"]
["Selskapskapital, Utjevningsfond",null,null,null,9,"21","40"]
["Grunnfondskapital, Sparebankens - foreningens fond",null,null,null,9,23,"20"]
["Grunnfondskapital, Kompensasjonsfond ",null,null,null,9,23,"30"]
["Grunnfondskapital, Gavefond",null,null,null,9,23,"40"]
["Fondsobligasjonskapital, netto",null,null,null,9,25,"00"]
["Annen innskutt egenkapital",null,null,null,9,26,"00"]
["Annen egenkapital, Fond for urealiserte gevinster (kan være negativ)",null,null,null,9,28,"31"]
["Annen egenkapital, Fond for vurderingsforskjeller (kan være negativ)",null,null,null,9,28,"33"]
["Annen egenkapital, Øvrig egenkapital (kan være negativ)",null,null,null,9,28,"90"]
["Annen egenkapital, Ikke disponert resultat (kan være negativ)",null,null,null,9,28,"99"]

{"sheet":"OR12","index":2,"n_rows":81,"n_cols":32,"rows_kept":81,"cut":false,"hidden":false,"merged":[]}
["ORBOF rapport 12"]
[]
[]
[]
[null,null,null,null,null,null,null,null,null,null,null,null,null,null,null,null,null,null,null,null,null,null,null,null,null,null,null,null,null,null,null," "]
["Beskrivelse                                                                                        (Valgfritt)","Tilleggs-art","Arts-gruppe","Inntekts-/ kostnadsart","Objekts-gruppe","Objekt","Under-objekt","Løpetid","Pant","Reservert (blank)","Reservert (blank)","Portefølje (blank)","Verd-setting (blank)","Sektor","Næring","Land (blank)","Fylke","Valuta","januar","februar","mars","april","mai","juni","juli","august","september","oktober","november","desember","VERSION::20210316||INNFIN::OR10||ORGNR::910887963||ÅR::2023|||"," "]
["Gjenstående løpetid på balanseposter, Bankinnskudd","13","0","01","1","16","00"]
["Gjenstående løpetid på balanseposter, Rentebærende omsettelige verdipapirer, OMF","13","0","01","2","30","10"]
["Gjenstående løpetid på balanseposter, Rentebærende omsettelige verdipapirer, øvrige","13","0","01","2","30","90"]
["Gjenstående løpetid på balanseposter, Utlån, brutto balanseført verdi","13","0","01","3","51","00"]
["Gjenstående løpetid på balanseposter, Lån i form av rentebærende omsettelige verdipapirer, OMF","13","0","01","7","30","10"]
["Gjenstående løpetid på balanseposter, Lån i form av rentebærende omsettelige verdipapirer, øvrige","13","0","01","7","30","90"]
["Gjenstående løpetid på balanseposter, Andre lån","13","0","01","7","50","00"]
["Gjenstående løpetid på balanseposter, Ansvarlig lånekapital","13","0","01","8","00","00"]
["Engasjementer knyttet til utlån (inkl. ubenytt. ramme) og garantier, Misligholdte etter 90-dagers def.","17","0","41","0","01","00"]
["Engasjementer knyttet til utlån (inkl. ubenytt. ramme) og garantier, Andre misligholdte jf.kapitalkrav.forskr. § 10-1","17","0","41","0","02","00"]
["Engasjementer knyttet til utlån (inkl. ubenytt. ramme) og garantier, Ikke-misligholdte over forfall - i overtrekk","17","0","41","0","03","00"]
["Engasjementer knyttet til utlån (inkl. ubenytt. ramme) og garantier, Med betalingslettelse, med nedskrivning","17","0","41","0","04","00"]
["Engasjementer knyttet til utlån (inkl. ubenytt. ramme) og garantier, Med betalingslettelse, uten nedskrivning","17","0","41","0","05","00"]
["Tapsnedskrivning på utlån (inkl. ubenytt. ramme) og garantier, Misligholdte etter 90-dagers def.","17","0","42","0","01","00"]
["Tapsnedskrivning på utlån (inkl. ubenytt. ramme) og garantier, Andre misligholdte jf. kapitalkrav.forskr. § 10","17","0","42","0","02","00"]
["Utlån til amortisert kost, og virkelig verdi over OCI, Brutto utlån, balanseført verdi, 'Trinn 1","19","0","01","3","51","10"]
["Utlån til amortisert kost, og virkelig verdi over OCI, Brutto utlån, balanseført verdi, 'Trinn 2","19","0","01","3","51","30"]
["Utlån til amortisert kost, og virkelig verdi over OCI, Brutto utlån, balanseført verdi, 'Trinn 3","19","0","01","3","51","50",null,null,null,null,null,null,null,null,null,null,null,null,null,null,null,null,null,null,null,null,null,null,null," "]
["Beholdning av senior etterstilte obligasjoner, Rentebærende, omsettelige verdipapirer, ","19","0","03","2","30","30",null,null,null,null,null,null,null,null,null,null,null,null,null,null,null,null,null,null,null,null,null,null,null,"Opplysningene er nå limt inn"]
["Spesifikasjon av balansepost, Utlån brutto balanseført verdi, Nedbetalingslån med pant i bolig med avdragsfrihet","33","0","01","3","51","50"]
["Fylkesfordelt, Fordringer på innenlandske sektorer, Utlån brutto balanseført verdi","39","0","01","3","51","00"]
["Fylkesfordelt, Fordringer på innenlandske sektorer, Tapsnedskrivning på utlån som er balanseført","39","0","01","3","56","00"]
["Fylkesfordelt, Gjeld fra innenlandske sektorer, Innskudd","39","0","02","6","10","00"]
["Inntekter fra utlån overført - formidlet til OMF-foretak, Nettoprovisjoner og andre inntekter","45","0","10","0","00","00"]
["Overført - formidlet til OMF-foretak, Utlån brutto, heleid OMF-foretak","45","0","21","3","51","01"]
["Overført - formidlet til OMF-foretak, Utlån brutto, deleid OMF-foretak","45","0","21","3","51","02"]
["Tilbakeført fra OMF-foretak, Utlån brutto","45","0","23","3","51","00"]
["Overført - formidlet til OMF-foretak, Brutto garantiansvar, på utlån med pant i bolig","45","0","31","0","70","01"]
["Overført - formidlet til OMF-foretak, Brutto garantiansvar, på andre utlån","45","0","31","0","70","09"]
["Ubenyttet ramme, Utlån brutto, rammelån - kreditter, inkl. kredittkort og ekskl. factoring","55","0","61","0","51","18"]
["Garantier overfor sikringsfondet","59","0","64","0","00","00"]
["Fulltegningsgarantier","59","0","66","0","00","00"]
["Annet garantiansvar","59","0","69","0","00","00"]
["Innskudd på klientkonti, samlede innskudd på klientkonti","65","0",1,"6","00",11]
["Innskudd på klientkonti, dekket av norsk innskuddsgarantiordning","65","0",1,"6","00",12]
["Innskudd dekket av EUs innsuddsgarantiordning (dekning av innskudd inntil 100 000 EUR)","65","0",1,"6","00",15]
["Spesifikasjon for NUF, Innskudd, Dekket av norsk innskuddsgarantiordning (dekning av innskudd inntil 2 mill. kr)",66,"0",1,"6","00",1]
["Spesifikasjon for NUF, Innskudd, Dekket av EUs innskuddsgarantiordning (dekning av innskudd inntil 100 000 EUR)",66,0,1,6,0,3]
["Spesifikasjon for NUF, Innskudd, Dekket av norsk innskuddsgarantiordning ved topping up",66,0,1,6,0,9]
["Spesifikasjon for NUF Antall innskytere, Fullt dekket av norsk innskuddsgarantiordning (dekning av innskudd inntil 2 mill. kr)",66,0,80,6,0,1]
["Spesifikasjon for NUF, Antall innskytere, Ikke fullt dekket av norsk innskuddsgarantiordning (innskudd over 2 mill. kr)",66,0,80,6,0,2]
["Spesifikasjon for NUF, Antall innskytere, Fullt dekket av EUs innskuddsgarantiordning (dekning av innskudd inntil 100 000 EUR)",66,0,80,6,0,3]
["Spesifikasjon for NUF, Antall innskytere, Ikke fullt dekket av EUs innskuddsgarantiordning (innskudd over 100 000 EUR)",66,0,80,6,0,4]
["Spesifikasjon av balansepost for utlån i rentestatistikken, Hovedstol, kredittkort hvor det løper renter","75","0","01","0","52","13"]
["Spesifikasjon av balansepost for utlån i rentestatistikken, Hovedstol, kredittkort hvor det ikke løper renter","75","0","01","0","52","14"]
["Spesifikasjon av balansepost for utlån i rentestatistikken, Hovedstol, andre rammelån - kreditter, ekskl. factoring","75","0","01","0","52","19"]
["Spesifikasjon av balansepost for utlån i rentestatistikken, Hovedstol, nedbetalingslån","75","0","01","0","52","50"]
["Rente- og provisjonssats på utlån (% * 100) i rentestatistikken, Hovedstol, kredittkort i alt","75","0","71","0","52","15"]
["Rente- og provisjonssats på utlån (% * 100) i rentestatistikken, Hovedstol, andre rammelån - kreditter, ekskl.factoring","75","0","71","0","52","19"]
["Rente- og provisjonssats på utlån (% * 100) i rentestatistikken, Hovedstol, nedbetalingslån","75","0","71","0","52","50"]
["Utlånsramme, Nye utlån, andre rammelån - rammekreditter","76","0","60","0","54","19"]
["Utlånsramme, Nye utlån, nedbetalingslån","76","0","60","0","54","50"]
["Rente- og provisjonssats på nye utlån (% * 100), Andre rammelån - rammekreditter","76","0","71","0","54","19"]
["Rente- og provisjonssats på nye utlån (% * 100), Nedbetalingslån","76","0","71","0","54","50"]
["Spes. av balansepost for rentestatistikken, Innskudd unntatt skattetrekkskonti, hovedstol, brukskonti","77","0","01","0","15","10"]
["Spes. av balansepost for rentestatistikken, Innskudd unntatt skattetrekkskonti, hovedstol, sparekonti mv. uten binding","77","0","01","0","15","20"]
["Spes. av balansepost for rentestatistikken, Innskudd unntatt skattetrekkskonti, hovedstol, BSU-konti med skattefradrag","77","0","01","0","15","30"]
["Spes. av balansepost for rentestatistikken, Innskudd unntatt skattetrekkskonti, hovedstol, andre unntatt skattetrekkskonti","77","0","01","0","15","91"]
["Rentesats på innskudd (% * 100) unntatt skattetrekkskonti, Hovedstol, brukskonti","77","0","72","0","15","10"]
["Rentesats på innskudd (% * 100) unntatt skattetrekkskonti, Hovedstol, sparekonti mv. uten binding","77","0","72","0","15","20"]
["Rentesats på innskudd (% * 100) unntatt skattetrekkskonti, Hovedstol, BSU-konti med skattefradrag","77","0","72","0","15","30"]
["Rentesats på innskudd (% * 100) unntatt skattetrekkskonti, Hovedstol, andre innskudd unntatt skattetrekkskonti","77","0","72","0","15","91"]
["Kjøp, av bygninger og annen fast eiendom","85","0","21","5","91","00"]
["Kjøp, av maskiner, inventar og transportmidler","85","0","21","5","94","00"]
["Kjøp, leierettigheter av bygninger og annen fast eiendom","85","0","21","5","96","10"]
["Kjøp, leierettigheter av maskiner, inventar og transportmidler","85","0","21","5","96","90"]
["Kjøp, av immaterielle eiendeler","85","0","21","5","97","00"]
["Salg, av bygninger og annen fast eiendom","85","0","23","5","91","00"]
["Salg, av maskiner, inventar og transportmidler","85","0","23","5","94","00"]
["Salg, leierettigheter av bygninger og annen fast eiendom","85","0","23","5","96","10"]
["Salg, leierettigheter av maskiner, inventar og transportmidler","85","0","23","5","96","90"]
["Salg, av immaterielle eiendeler","85","0","23","5","97","00"]
["Egentilvirket - egne byggearbeider - internt opparbeidet, Bygninger og annen fast eiendom","85","0","24","5","91","00"]
["Egentilvirket - egne byggearbeider - internt opparbeidet, Immaterielle eiendeler","85","0","24","5","97","00"]
["Antall årsverk","94","0","81","0","00","00"]

{"sheet":"OR13","index":3,"n_rows":46,"n_cols":32,"rows_kept":46,"cut":false,"hidden":false,"merged":[]}
["ORBOF rapport 13"]
[]
[]
[]
[null,null,null,null,null,null,null,null,null,null,null,null,null,null,null,null,null,null,null,null,null,null,null,null,null,null,null,null,null,null,null," "]
["Beskrivelse                                                                                        (Valgfritt)","Tilleggs-art","Arts-gruppe","Inntekts-/ kostnadsart","Objekts-gruppe","Objekt","Under-objekt","Løpetid","Pant (blank)","Reservert (blank)","Reservert (blank)","Portefølje (blank)","Verd-setting (blank)","Sektor","Næring (blank)","Land","Fylke (blank)","Valuta","januar","februar","mars","april","mai","juni","juli","august","september","oktober","november","desember","VERSION::20210316||INNFIN::OR10||ORGNR::910887963||ÅR::2023|||"," "]
["Tapsnedskrivninger på utlån som er balanseført","61","0","01","3","56","00"]
["Sum fordringer, ekskl. derivater","62","0","01","0","98","00"]
["Fordringer i NOK, Kontanter","63","0","01","1","11","00"]
["Fordringer i NOK, Bankinnskudd","63","0","01","1","16","00"]
["Fordringer i NOK, Aksjer, andeler og egenkapitalbevis","63","0","01","2","20","00"]
["Fordringer i NOK, Rentebærende omsettelige verdipapirer","63","0","01","2","30","00"]
["Fordringer i NOK, Finansielle derivater (kan være negativ)","63","0","01","2","40","00"]
["Fordringer i NOK, Utlån, balanseført verdi","63","0","01","3","50","00"]
["Fordringer i NOK, Andre fordringer","63","0","01","4","82","00"]
["Fordringer i NOK, Andre eiendeler","63","0","01","4","89","00"]
["Fordringer i utenlandsk valuta, Kontanter","63","0","02","1","11","00"]
["Fordringer i utenlandsk valuta, Bankinnskudd","63","0","02","1","16","00"]
["Fordringer i utenlandsk valuta, Aksjer, andeler og egenkapitalbevis","63","0","02","2","20","00"]
["Fordringer i utenlandsk valuta, Rentebærende omsettelige verdipapirer","63","0","02","2","30","00"]
["Fordringer i utenlandsk valuta, Finansielle derivater (kan være negativ)","63","0","02","2","40","00"]
["Fordringer i utenlandsk valuta, Utlån, balanseført verdi","63","0","02","3","50","00"]
["Fordringer i utenlandsk valuta, Andre fordringer","63","0","02","4","82","00"]
["Fordringer i utenlandsk valuta, Andre eiendeler","63","0","02","4","89","00",null,null,null,null,null,null,null,null,null,null,null,null,null,null,null,null,null,null,null,null,null,null,null," "]
["Ikke-finansielle eiendeler, Realkapital og immaterielle eiendeler","63","0","03","5","90","00",null,null,null,null,null,null,null,null,null,null,null,null,null,null,null,null,null,null,null,null,null,null,null,"Opplysningene er nå limt inn"]
["Gjeld i NOK, Innskudd","63","0","04","6","10","00"]
["Gjeld i NOK, Lån i form av rentebærende omsettelige verdipapirer","63","0","04","0","30","00"]
["Gjeld i NOK, Finansielle derivater (kan være negativ)","63","0","04","7","40","00"]
["Gjeld i NOK, Andre lån","63","0","04","0","50","00"]
["Gjeld i NOK, Annen gjeld","63","0","04","7","82","00"]
["Gjeld i utenlandsk valuta, Innskudd","63","0","05","6","10","00"]
["Gjeld i utenlandsk valuta, Lån i form av rentebærende omsettelige verdipapirer","63","0","05","0","30","00"]
["Gjeld i utenlandsk valuta, Finansielle derivater (kan være negativ)","63","0","05","7","40","00"]
["Gjeld i utenlandsk valuta, Andre lån","63","0","05","0","50","00"]
["Gjeld i utenlandsk valuta, Annen gjeld","63","0","05","7","82","00"]
["Egenkapital, Selskapskapital, aksjekapital - eierandelskapital, netto","63","0","09","9","21","10"]
["Egenkapital, Fondsobligasjonskapital, netto","63","0","09","9","25","00"]
["Innskudd. Dekket av norsk innskuddsgarantiordning, i norsk del av virksomheten (innskudd inntil 2 mill.)",67,0,1,6,0,21]
["Innskudd. Dekket av norsk innskuddsgarantiordning, i utenlandsk filial av norsk bank (innskudd inntil 100 000 EUR)",67,0,1,6,0,23]
["Innskudd. Dekket av norsk innskuddsgarantiordning, i grensekryssende virksomhet uten etablering (innskudd inntil 100 000 EUR)",67,0,1,6,0,33]
["Antall innskytere. Fullt dekket av norsk innskuddsgarantiordning, i norsk del av virksomheten (innskudd inntil 2 mill.)",67,0,80,6,0,21]
["Antall innskytere. Ikke fullt dekket av norsk innskuddsgarantiordning, i norsk del av virksomheten (innskudd over 2 mill.)",67,0,80,6,0,22]
["Antall innskytere. Fullt dekket av norsk innskuddsgarantiordning, i utenlandsk filial av norsk bank (innskudd inntil 100 000 EUR)",67,0,80,6,0,23]
["Antall innskytere. Ikke fullt dekket av norsk innskuddsgarantiordning, i utenlandsk filial av norsk bank (innskudd over 100 000 EUR)",67,0,80,6,0,24]
["Antall innskytere. Fullt dekket av norsk innskuddsgarantiordning, i grensekryssende virksomhet uten etablering (innskudd inntil 100 000 EUR)",67,0,80,6,0,33]
["Antall innskytere. Ikke fullt dekket av norsk innskuddsgarantiordning, i grensekryssende virksomhet uten etablering (innskudd over 100 000 EUR)",67,0,80,6,0,34]

{"sheet":"OR21","index":4,"n_rows":100,"n_cols":32,"rows_kept":100,"cut":false,"hidden":false,"merged":[]}
["ORBOF rapport 21"]
[]
[]
[]
[null,null,null,null,null,null,null,null,null,null,null,null,null,null,null,null,null,null,null,null,null,null,null,null,null,null,null,null,null,null,null," "]
["Beskrivelse                                                                                        (Valgfritt)","Tilleggs-art (blank)","Arts-gruppe","Inntekts-/ kostnadsart","Objekts-gruppe","Objekt","Under-objekt","Løpetid (blank)","Pant (blank)","Reservert (blank)","Reservert (blank)","Portefølje (blank)","Verd-setting (blank)","Sektor","Næring (blank)","Land (blank)","Fylke (blank)","Valuta","januar","februar","mars","april","mai","juni","juli","august","september","oktober","november","desember","VERSION::20210316||INNFIN::OR10||ORGNR::910887963||ÅR::2023|||"," "]
["Renteinntekter, Bankinnskudd",null,1,11,1,16,0]
["Renteinntekter, Rentebærende omsettelige verdipapirer",null,"1","11","2","30","00"]
["Renteinntekter, Finansielle derivater",null,"1","11","0","40","00"]
["Renteinntekter, Utlån",null,"1","11","3","50","00"]
["Renteinntekter, Øvrige eiendeler",null,"1","11","0","90","00"]
["Kredittprovisjonsinntekter",null,"1","12","0","00","00"]
["Provisjons- og gebyrinntekter, Betalingsformidling, kort",null,"1","20","0","10","10"]
["Provisjons- og gebyrinntekter, Betalingsformidling, giro",null,"1","20","0","10","20"]
["Provisjons- og gebyrinntekter, Betalingsformidling, øvrig",null,"1","20","0","10","90"]
["Provisjons- og gebyrinntekter, Netto garantiprovisjonsinntekter",null,"1","20","0","20","00"]
["Provisjons- og gebyrinntekter, Andre provisjoner og gebyrer",null,"1","20","0","90","00"]
["Utbytte, konsernbidrag og annen resultatavhengig avkastning, Rentefond",null,"1","30","2","20","51"]
["Utbytte, konsernbidrag og annen resultatavhengig avkastning, Aksjer og andeler regnskapsført etter egenkapitalmetoden",null,"1","30","2","20","91"]
["Utbytte, konsernbidrag og annen resultatavhengig avkastning, Øvrig",null,"1","30","2","20","99"]
["Netto verdiendr. og gevinst - tap på val. og finansielle instrumenter, Valuta og finansielle derivater(eiend. og gjeld)",null,"1","60","0","40","00"]
["Netto verdiendr. og gevinst - tap på val. og finansielle instrumenter, Aksjer, andeler og egenkapitalbevis",null,"1","60","2","20","00"]
["Netto verdiendr. og gevinst - tap på val. og finansielle instrumenter, Rentebærende, omsettelige verdipapirer",null,"1","60","2","30","00"]
["Netto verdiendr. og gevinst - tap på val. og finansielle instrumenter, Utlån",null,"1","60","3","50","00"]
["Netto verdiendr. og gevinst - tap på val. og finansielle instrumenter, Øvrige finansielle eiendeler",null,"1","60","0","96","00",null,null,null,null,null,null,null,null,null,null,null,null,null,null,null,null,null,null,null,null,null,null,null,"Opplysningene er nå limt inn"]
["Netto verdiendr. og gevinst - tap på val. og finansielle instrumenter, Finansielle forpliktelser, ekskl. derivater",null,"1","60","0","97","00"]
["Driftsinntekter eide eiendommer",null,"2","73","0","00","00"]
["Andre inntekter fra tjenester (inkl. honorarer), Forvaltningshonorarer fra konsernselskaper",null,"2","78","0","80","00"]
["Andre driftsinntekter, Negativ goodwill innregnet i resultat",null,"2","79","0","10","00"]
["Andre driftsinntekter, Øvrige",null,"2","79","0","90","00"]
["Andre driftsinntekter, Rentestøtte fra staten (gjelder kun statlige låneinst.)",null,"2","79","0","80","00"]
["Rentekostnader, Innskudd",null,"4","11","6","10","00"]
["Rentekostnader, Lån i form av rentebærende, omsettelige verdipapirer, OMF",null,"4","11","0","30","10"]
["Rentekostnader, Lån i form av rentebærende, Annen verdipapirgjeld",null,"4","11","0","30","90"]
["Rentekostnader, Finansielle derivater",null,"4","11","0","40","00"]
["Rentekostnader, Andre lån",null,"4","11","0","50","00"]
["Rentekostnader, Andre forpliktelser",null,"4","11","0","90","00"]
["Avgift til sikringsfondet",null,"4","13","0","00","00"]
["Provisjons- og gebyrkostnader, kurtasje, Betalingsformidling",null,"4","20","0","10","00"]
["Provisjons- og gebyrkostnader, kurtasje, Netto garantiprovisjonskostnader",null,"4","20","0","20","00"]
["Provisjons- og gebyrkostnader, kurtasje, Andre provisjoner og gebyrer",null,"4","20","0","90","00"]
["Lønn og naturalytelser til ansatte, unntatt personalforsikringer",null,"5","51","0","11","00"]
["Styrehonorarer, godtgj.for verv og andre avgiftspliktige honorarer",null,"5","51","0","19","00"]
["Andre honorarer klassifisert som lønn",null,"5","51","0","20","00"]
["Pensjonskostnader",null,"5","51","0","30","00"]
["Personalforsikringer",null,"5","51","0","40","00"]
["Arbeidsgiveravgift og finansskatt",null,"5","51","0","50","00"]
["Andre personalkostnader",null,"5","51","0","90","00"]
["Kostnader til strøm og forsikring, Strøm inkl. nettleie",null,"5","71","0","10","00"]
["Kostnader til strøm og forsikring, Forsikring",null,"5","71","0","20","00"]
["Driftskostnader eide eiendommer, Reparasjon og vedlikehold",null,"5","73","0","10","00"]
["Driftskostnader eide eiendommer, Andre, ekskl. strøm og forsikring",null,"5","73","0","90","00"]
["Andre kostnader til eksterne tjenester (inkl. honorarer), Revisjon og regnskap",null,"5","78","0","10","00"]
["Andre kostnader til eksterne tjenester (inkl. honorarer), Juridisk bistand",null,"5","78","0","20","00"]
["Andre kostnader til eksterne tjenester (inkl. honorarer), IKT",null,"5","78","0","30","00"]
["Andre kostnader til eksterne tjenester (inkl. honorarer), Salg, reklame og representasjon",null,"5","78","0","40","00"]
["Andre kostnader til eksterne tjenester (inkl. honorarer), Leie av lokaler",null,"5","78","0","71","00"]
["Andre kostnader til eksterne tjenester (inkl. honorarer), Leie av maskiner, inventar og transportmidler",null,"5","78","0","73","00"]
["Andre kostnader til eksterne tjenester (inkl. honorarer), Forvaltningshonorarer til konsernselskaper",null,"5","78","0","80","00"]
["Andre kostnader til eksterne tjenester (inkl. honorarer), Øvrige, honorarer til bemanningsselskaper",null,"5","78","0","90","10"]
["Andre kostnader til eksterne tjenester (inkl. honorarer), Andre",null,"5","78","0","90","90"]
["Andre driftskostnader, Lisenser, programmer og annet IKT-utstyr",null,"5","79","0","10","00"]
["Andre driftskostnader, Øvrige",null,"5","79","0","90","00"]
["Andre driftskostnader, Overføringer til staten (gjelder kun statlige låneinst.)",null,"5","79","0","80","00"]
["Av- og nedskrivning, verdiendr. og gev./tap på ikke-finansielle eiend., Avskrivninger (kan være negativ)",null,"6","61","0","10","00"]
["Av- og nedskrivning, verdiendr. og gev./tap på ikke-finansielle eiend., Nedskrivninger (kan være negativ)",null,"6","61","0","20","00"]
["Av- og nedskrivning, verdiendr. og gev./tap på ikke-finansielle eiend., Netto verdiendr. (neg. hvis netto positive verdiendr.)",null,"6","61","0","40","00"]
["Av- og nedskrivning, verdiendr. og gev./tap på ikke-finansielle eiend., Gevinst - tap (negativ hvis gevinst)",null,"6","61","0","60","00"]
["Kred.tap på utlån og rentebærende verdipapir., Rentebærende, omsettelige verdipapirer (kan være negativ)",null,"6","66","2","30","00"]
["Kred.tap på utlån og rentebærende verdipapir., Utlån balanseført, Konstaterte tap utlån til virkelig verdi (kan være negativ)",null,"6","66","3","50","11"]
["Kred.tap på utlån og rentebærende verdipapir., Utlån balanseført, Øvrige kred.tap utlån til virkelig verdi (kan være negativ)",null,"6","66","3","50","19"]
["Kred.tap på utlån og rentebærende verdipapir., Utlån balanseført, Konstaterte tap utlån til am.kost (kan være negativ)",null,"6","66","3","50","21"]
["Kred.tap på utlån og rentebærende verdipapir., Utlån balanseført, Øvr. kred.tap utlån til am.kost (kan være negativ)",null,"6","66","3","50","29"]
["Kred.tap på ubenyttet utlånsramme og garantier, Ubenyttet utlånsramme (kan være negativ)",null,"6","68","7","86","00"]
["Kred.tap på ubenyttet utlånsramme og garantier, Garantier (kan være negativ)",null,"6","68","7","87","00"]
["Skattekostnader, Periodeskatt",null,"7","80","0","10","00"]
["Skattekostnader, Endring i forpliktelse ved utsatt skatt",null,"7","80","7","89","00"]
["Andr. Inntekt/kostn. som ikke omklassifiseres t/ resultat, Fra eg.kap.instrumenter klassifisert til virkelig verdi over OCI",null,"8","91","0","10","00"]
["Andr. Inntekt/kostn. som ikke omklassifiseres t/ resultat, Estimatendr. knyttet til ytelsesbaserte pensjonsordninger",null,"8","91","0","30","00"]
["Andr. Inntekt/kostn. som ikke omklassifiseres t/ resultat, Fra andre finansielle eiendeler og forpliktelser",null,"8","91","0","60","00"]
["Andr. Inntekt/kostn. som ikke omklassifiseres t/ resultat, Fra ikke-finansielle eiendeler",null,"8","91","0","70","00"]
["Andr. Inntekt/kostn. som ikke omklassifiseres t/ resultat, Skatt på inntekt - kostn. som ikke blir omklassifisert",null,"8","91","7","89","00"]
["Andr. Inntekt/kostn. som kan omklassifiseres t/resultat, Fra investeringer i rentebær. verd.pap klassif. t/virkelig verdi o/OCI",null,"8","92","0","20","00"]
["Andr. Inntekt/kostn. som kan omklassifiseres t/resultat, Effektiv andel nto.gev. på sikringsinstrum. i kontantstrømsikring",null,"8","92","0","40","00"]
["Andr. Inntekt/kostn. som kan omklassifiseres t/resultat, Nto. valutakursgev. ved omregning av utenlandsk virksomhet",null,"8","92","0","50","00"]
["Andr. Inntekt/kostn. som kan omklassifiseres t/resultat, Fra andre finansielle eiendeler og forpliktelser",null,"8","92","0","60","00"]
["Andr. Inntekt/kostn. som kan omklassifiseres t/resultat, Fra ikke-finansielle eiendeler",null,"8","92","0","70","00"]
["Andr. Inntekt/kostn. som kan omklassifiseres t/resultat, Skatt på inntekt - kostn. som kan bli omklassifisert",null,"8","92","7","89","00"]
["Virkninger av endringer i regnskapsprinsipper og korreksjoner av feil i IB (kan være negativ)",null,"9","01","0","00","00"]
["Totalresultat hittil i år, Resultat hittil i år (negativt hvis underskudd)",null,"9","03","0","10","00"]
["Totalresultat hittil i år, Netto inntekter over utvidet resultat hittil i år (OCI) (negativt hvis netto kostnad) ",null,"9","03","0","90","00"]
["Emisjoner (+), tilbakekjøp, innfrielser og kapitalnedsettelser (-), Aksje - eierandelskapital (kan være negativ)",null,"9","05","9","21","00"]
["Emisjoner (+), tilbakekjøp, innfrielser og kapitalnedsettelser (-), Fondsobligasjonskapital (kan være negativ)",null,"9","05","9","25","00"]
["Andre egenkapitaltrans. (utdelinger og fordelinger til eiere), Gaveutdeling (negativ)",null,"9","08","0","10","00"]
["Andre egenkapitaltrans. (utdelinger og fordelinger til eiere), Renter på fondsobligasjonskapital (negativ)",null,"9","08","0","40","00"]
["Andre egenkapitaltrans. (utdelinger og fordelinger til eiere), Utbytte - renter på eierandelskapital (negativ)",null,"9","08","0","50","00"]
["Andre egenkapitaltrans. (utdelinger og fordelinger til eiere), Konsernbidrag, avgitt (negativ)",null,"9","08","0","60","10"]
["Andre egenkapitaltrans. (utdelinger og fordelinger til eiere), Konsernbidrag, mottatt",null,"9","08","0","60","20"]
["Andre egenkapitaltrans. (utdelinger og fordelinger til eiere), Kundeutbytte",null,"9","08","0","70","00"]
["Andre egenkapitaltrans. (utdelinger og fordelinger til eiere), Andre egenkapitaltrans.(neg. hvis reduksjon av egenkapital)",null,"9","08","0","90","00"]